{"text_format":"1","workbook":"xlsx","n_sheets":4,"sheets":["Achat","Basededonnée","Tableau de bord","Feuil1"],"not_rendered":{"charts":0,"images":2,"macros":1,"external_links":0,"defined_names":59,"comments":0,"pivot_tables":0},"unopened":[],"bounds":{"document_bytes":16777216,"sheet_cells":100000,"rows_first":2000,"rows_last":500,"rows_between":2000,"halvings":0,"cell_chars":16384,"cell_head_chars":4096},"cells_cut":0,"cells_raw":0,"read":"whole","date_system":"1900"}

{"sheet":"Achat","index":0,"n_rows":56,"n_cols":10,"rows_kept":56,"cut":false,"hidden":false,"merged":[[0,0,0,1],[0,28,0,46],[0,18,0,27],[0,8,0,17]]}
[]
["Code","Date","Arbre","Fleurs","Fruits","Légumes","Nuage","Gazon"]
[310,"2015-01-16",{"$f":"_xlfn.XLOOKUP(tbllavage[[#This Row],[Code]],Tableau_basededonnée[Code],Tableau_basededonnée[Arbre],,0)","v":"AAAA"},{"$f":"_xlfn.XLOOKUP(tbllavage[[#This Row],[Code]],Tableau_basededonnée[Code],Tableau_basededonnée[Fleurs],,0)","v":"WWW"},{"$f":"_xlfn.XLOOKUP(tbllavage[[#This Row],[Code]],Tableau_basededonnée[Code],Tableau_basededonnée[Fruits],,0)","v":"XX"},{"$f":"_xlfn.XLOOKUP(tbllavage[[#This Row],[Code]],Tableau_basededonnée[Code],Tableau_basededonnée[Légumes],,0)","v":"QQQ"},{"$f":"_xlfn.XLOOKUP(tbllavage[[#This Row],[Code]],Tableau_basededonnée[Code],Tableau_basededonnée[Nuage],,0)","v":"1"},{"$f":"_xlfn.XLOOKUP(tbllavage[[#This Row],[Code]],Tableau_basededonnée[Code],Tableau_basededonnée[Gazon],,0)","v":10}]
[312,"2015-02-13",{"$f":"_xlfn.XLOOKUP(tbllavage[[#This Row],[Code]],Tableau_basededonnée[Code],Tableau_basededonnée[Arbre],,0)","v":"AAAA"},{"$f":"_xlfn.XLOOKUP(tbllavage[[#This Row],[Code]],Tableau_basededonnée[Code],Tableau_basededonnée[Fleurs],,0)","v":"WWW"},{"$f":"_xlfn.XLOOKUP(tbllavage[[#This Row],[Code]],Tableau_basededonnée[Code],Tableau_basededonnée[Fruits],,0)","v":"NN"},{"$f":"_xlfn.XLOOKUP(tbllavage[[#This Row],[Code]],Tableau_basededonnée[Code],Tableau_basededonnée[Légumes],,0)","v":"HHH"},{"$f":"_xlfn.XLOOKUP(tbllavage[[#This Row],[Code]],Tableau_basededonnée[Code],Tableau_basededonnée[Nuage],,0)","v":1},{"$f":"_xlfn.XLOOKUP(tbllavage[[#This Row],[Code]],Tableau_basededonnée[Code],Tableau_basededonnée[Gazon],,0)","v":150}]
[314,"2015-02-20",{"$f":"_xlfn.XLOOKUP(tbllavage[[#This Row],[Code]],Tableau_basededonnée[Code],Tableau_basededonnée[Arbre],,0)","v":"AAAA"},{"$f":"_xlfn.XLOOKUP(tbllavage[[#This Row],[Code]],Tableau_basededonnée[Code],Tableau_basededonnée[Fleurs],,0)","v":"WWW"},{"$f":"_xlfn.XLOOKUP(tbllavage[[#This Row],[Code]],Tableau_basededonnée[Code],Tableau_basededonnée[Fruits],,0)","v":"OO"},{"$f":"_xlfn.XLOOKUP(tbllavage[[#This Row],[Code]],Tableau_basededonnée[Code],Tableau_basededonnée[Légumes],,0)","v":"ZZZ"},{"$f":"_xlfn.XLOOKUP(tbllavage[[#This Row],[Code]],Tableau_basededonnée[Code],Tableau_basededonnée[Nuage],,0)","v":1},{"$f":"_xlfn.XLOOKUP(tbllavage[[#This Row],[Code]],Tableau_basededonnée[Code],Tableau_basededonnée[Gazon],,0)","v":25}]
[316,"2015-02-27",{"$f":"_xlfn.XLOOKUP(tbllavage[[#This Row],[Code]],Tableau_basededonnée[Code],Tableau_basededonnée[Arbre],,0)","v":"AAAA"},{"$f":"_xlfn.XLOOKUP(tbllavage[[#This Row],[Code]],Tableau_basededonnée[Code],Tableau_basededonnée[Fleurs],,0)","v":"WWW"},{"$f":"_xlfn.XLOOKUP(tbllavage[[#This Row],[Code]],Tableau_basededonnée[Code],Tableau_basededonnée[Fruits],,0)","v":"RR"},{"$f":"_xlfn.XLOOKUP(tbllavage[[#This Row],[Code]],Tableau_basededonnée[Code],Tableau_basededonnée[Légumes],,0)","v":"FFF"},{"$f":"_xlfn.XLOOKUP(tbllavage[[#This Row],[Code]],Tableau_basededonnée[Code],Tableau_basededonnée[Nuage],,0)","v":1},{"$f":"_xlfn.XLOOKUP(tbllavage[[#This Row],[Code]],Tableau_basededonnée[Code],Tableau_basededonnée[Gazon],,0)","v":100},null," "]
[313,"2015-03-06",{"$f":"_xlfn.XLOOKUP(tbllavage[[#This Row],[Code]],Tableau_basededonnée[Code],Tableau_basededonnée[Arbre],,0)","v":"AAAA"},{"$f":"_xlfn.XLOOKUP(tbllavage[[#This Row],[Code]],Tableau_basededonnée[Code],Tableau_basededonnée[Fleurs],,0)","v":"WWW"},{"$f":"_xlfn.XLOOKUP(tbllavage[[#This Row],[Code]],Tableau_basededonnée[Code],Tableau_basededonnée[Fruits],,0)","v":"LL"},{"$f":"_xlfn.XLOOKUP(tbllavage[[#This Row],[Code]],Tableau_basededonnée[Code],Tableau_basededonnée[Légumes],,0)","v":"KKK"},{"$f":"_xlfn.XLOOKUP(tbllavage[[#This Row],[Code]],Tableau_basededonnée[Code],Tableau_basededonnée[Nuage],,0)","v":1},{"$f":"_xlfn.XLOOKUP(tbllavage[[#This Row],[Code]],Tableau_basededonnée[Code],Tableau_basededonnée[Gazon],,0)","v":100}]
[311,"2015-03-20",{"$f":"_xlfn.XLOOKUP(tbllavage[[#This Row],[Code]],Tableau_basededonnée[Code],Tableau_basededonnée[Arbre],,0)","v":"AAAA"},{"$f":"_xlfn.XLOOKUP(tbllavage[[#This Row],[Code]],Tableau_basededonnée[Code],Tableau_basededonnée[Fleurs],,0)","v":"WWW"},{"$f":"_xlfn.XLOOKUP(tbllavage[[#This Row],[Code]],Tableau_basededonnée[Code],Tableau_basededonnée[Fruits],,0)","v":"VV"},{"$f":"_xlfn.XLOOKUP(tbllavage[[#This Row],[Code]],Tableau_basededonnée[Code],Tableau_basededonnée[Légumes],,0)","v":"SSS"},{"$f":"_xlfn.XLOOKUP(tbllavage[[#This Row],[Code]],Tableau_basededonnée[Code],Tableau_basededonnée[Nuage],,0)","v":1},{"$f":"_xlfn.XLOOKUP(tbllavage[[#This Row],[Code]],Tableau_basededonnée[Code],Tableau_basededonnée[Gazon],,0)","v":50}]
[315,"2015-03-27",{"$f":"_xlfn.XLOOKUP(tbllavage[[#This Row],[Code]],Tableau_basededonnée[Code],Tableau_basededonnée[Arbre],,0)","v":"AAAA"},{"$f":"_xlfn.XLOOKUP(tbllavage[[#This Row],[Code]],Tableau_basededonnée[Code],Tableau_basededonnée[Fleurs],,0)","v":"WWW"},{"$f":"_xlfn.XLOOKUP(tbllavage[[#This Row],[Code]],Tableau_basededonnée[Code],Tableau_basededonnée[Fruits],,0)","v":"UU"},{"$f":"_xlfn.XLOOKUP(tbllavage[[#This Row],[Code]],Tableau_basededonnée[Code],Tableau_basededonnée[Légumes],,0)","v":"EEE"},{"$f":"_xlfn.XLOOKUP(tbllavage[[#This Row],[Code]],Tableau_basededonnée[Code],Tableau_basededonnée[Nuage],,0)","v":1},{"$f":"_xlfn.XLOOKUP(tbllavage[[#This Row],[Code]],Tableau_basededonnée[Code],Tableau_basededonnée[Gazon],,0)","v":50}]
[311,"2016-01-15",{"$f":"_xlfn.XLOOKUP(tbllavage[[#This Row],[Code]],Tableau_basededonnée[Code],Tableau_basededonnée[Arbre],,0)","v":"AAAA"},{"$f":"_xlfn.XLOOKUP(tbllavage[[#This Row],[Code]],Tableau_basededonnée[Code],Tableau_basededonnée[Fleurs],,0)","v":"WWW"},{"$f":"_xlfn.XLOOKUP(tbllavage[[#This Row],[Code]],Tableau_basededonnée[Code],Tableau_basededonnée[Fruits],,0)","v":"VV"},{"$f":"_xlfn.XLOOKUP(tbllavage[[#This Row],[Code]],Tableau_basededonnée[Code],Tableau_basededonnée[Légumes],,0)","v":"SSS"},{"$f":"_xlfn.XLOOKUP(tbllavage[[#This Row],[Code]],Tableau_basededonnée[Code],Tableau_basededonnée[Nuage],,0)","v":1},{"$f":"_xlfn.XLOOKUP(tbllavage[[#This Row],[Code]],Tableau_basededonnée[Code],Tableau_basededonnée[Gazon],,0)","v":50}]
[314,"2016-01-20",{"$f":"_xlfn.XLOOKUP(tbllavage[[#This Row],[Code]],Tableau_basededonnée[Code],Tableau_basededonnée[Arbre],,0)","v":"AAAA"},{"$f":"_xlfn.XLOOKUP(tbllavage[[#This Row],[Code]],Tableau_basededonnée[Code],Tableau_basededonnée[Fleurs],,0)","v":"WWW"},{"$f":"_xlfn.XLOOKUP(tbllavage[[#This Row],[Code]],Tableau_basededonnée[Code],Tableau_basededonnée[Fruits],,0)","v":"OO"},{"$f":"_xlfn.XLOOKUP(tbllavage[[#This Row],[Code]],Tableau_basededonnée[Code],Tableau_basededonnée[Légumes],,0)","v":"ZZZ"},{"$f":"_xlfn.XLOOKUP(tbllavage[[#This Row],[Code]],Tableau_basededonnée[Code],Tableau_basededonnée[Nuage],,0)","v":1},{"$f":"_xlfn.XLOOKUP(tbllavage[[#This Row],[Code]],Tableau_basededonnée[Code],Tableau_basededonnée[Gazon],,0)","v":25}]
[312,"2016-02-03",{"$f":"_xlfn.XLOOKUP(tbllavage[[#This Row],[Code]],Tableau_basededonnée[Code],Tableau_basededonnée[Arbre],,0)","v":"AAAA"},{"$f":"_xlfn.XLOOKUP(tbllavage[[#This Row],[Code]],Tableau_basededonnée[Code],Tableau_basededonnée[Fleurs],,0)","v":"WWW"},{"$f":"_xlfn.XLOOKUP(tbllavage[[#This Row],[Code]],Tableau_basededonnée[Code],Tableau_basededonnée[Fruits],,0)","v":"NN"},{"$f":"_xlfn.XLOOKUP(tbllavage[[#This Row],[Code]],Tableau_basededonnée[Code],Tableau_basededonnée[Légumes],,0)","v":"HHH"},{"$f":"_xlfn.XLOOKUP(tbllavage[[#This Row],[Code]],Tableau_basededonnée[Code],Tableau_basededonnée[Nuage],,0)","v":1},{"$f":"_xlfn.XLOOKUP(tbllavage[[#This Row],[Code]],Tableau_basededonnée[Code],Tableau_basededonnée[Gazon],,0)","v":150}]
[310,"2016-02-05",{"$f":"_xlfn.XLOOKUP(tbllavage[[#This Row],[Code]],Tableau_basededonnée[Code],Tableau_basededonnée[Arbre],,0)","v":"AAAA"},{"$f":"_xlfn.XLOOKUP(tbllavage[[#This Row],[Code]],Tableau_basededonnée[Code],Tableau_basededonnée[Fleurs],,0)","v":"WWW"},{"$f":"_xlfn.XLOOKUP(tbllavage[[#This Row],[Code]],Tableau_basededonnée[Code],Tableau_basededonnée[Fruits],,0)","v":"XX"},{"$f":"_xlfn.XLOOKUP(tbllavage[[#This Row],[Code]],Tableau_basededonnée[Code],Tableau_basededonnée[Légumes],,0)","v":"QQQ"},{"$f":"_xlfn.XLOOKUP(tbllavage[[#This Row],[Code]],Tableau_basededonnée[Code],Tableau_basededonnée[Nuage],,0)","v":"1"},{"$f":"_xlfn.XLOOKUP(tbllavage[[#This Row],[Code]],Tableau_basededonnée[Code],Tableau_basededonnée[Gazon],,0)","v":10}]
[315,"2016-02-05",{"$f":"_xlfn.XLOOKUP(tbllavage[[#This Row],[Code]],Tableau_basededonnée[Code],Tableau_basededonnée[Arbre],,0)","v":"AAAA"},{"$f":"_xlfn.XLOOKUP(tbllavage[[#This Row],[Code]],Tableau_basededonnée[Code],Tableau_basededonnée[Fleurs],,0)","v":"WWW"},{"$f":"_xlfn.XLOOKUP(tbllavage[[#This Row],[Code]],Tableau_basededonnée[Code],Tableau_basededonnée[Fruits],,0)","v":"UU"},{"$f":"_xlfn.XLOOKUP(tbllavage[[#This Row],[Code]],Tableau_basededonnée[Code],Tableau_basededonnée[Légumes],,0)","v":"EEE"},{"$f":"_xlfn.XLOOKUP(tbllavage[[#This Row],[Code]],Tableau_basededonnée[Code],Tableau_basededonnée[Nuage],,0)","v":1},{"$f":"_xlfn.XLOOKUP(tbllavage[[#This Row],[Code]],Tableau_basededonnée[Code],Tableau_basededonnée[Gazon],,0)","v":50}]
[313,"2016-02-17",{"$f":"_xlfn.XLOOKUP(tbllavage[[#This Row],[Code]],Tableau_basededonnée[Code],Tableau_basededonnée[Arbre],,0)","v":"AAAA"},{"$f":"_xlfn.XLOOKUP(tbllavage[[#This Row],[Code]],Tableau_basededonnée[Code],Tableau_basededonnée[Fleurs],,0)","v":"WWW"},{"$f":"_xlfn.XLOOKUP(tbllavage[[#This Row],[Code]],Tableau_basededonnée[Code],Tableau_basededonnée[Fruits],,0)","v":"LL"},{"$f":"_xlfn.XLOOKUP(tbllavage[[#This Row],[Code]],Tableau_basededonnée[Code],Tableau_basededonnée[Légumes],,0)","v":"KKK"},{"$f":"_xlfn.XLOOKUP(tbllavage[[#This Row],[Code]],Tableau_basededonnée[Code],Tableau_basededonnée[Nuage],,0)","v":1},{"$f":"_xlfn.XLOOKUP(tbllavage[[#This Row],[Code]],Tableau_basededonnée[Code],Tableau_basededonnée[Gazon],,0)","v":100}]
[315,"2016-10-11",{"$f":"_xlfn.XLOOKUP(tbllavage[[#This Row],[Code]],Tableau_basededonnée[Code],Tableau_basededonnée[Arbre],,0)","v":"AAAA"},{"$f":"_xlfn.XLOOKUP(tbllavage[[#This Row],[Code]],Tableau_basededonnée[Code],Tableau_basededonnée[Fleurs],,0)","v":"WWW"},{"$f":"_xlfn.XLOOKUP(tbllavage[[#This Row],[Code]],Tableau_basededonnée[Code],Tableau_basededonnée[Fruits],,0)","v":"UU"},{"$f":"_xlfn.XLOOKUP(tbllavage[[#This Row],[Code]],Tableau_basededonnée[Code],Tableau_basededonnée[Légumes],,0)","v":"EEE"},{"$f":"_xlfn.XLOOKUP(tbllavage[[#This Row],[Code]],Tableau_basededonnée[Code],Tableau_basededonnée[Nuage],,0)","v":1},{"$f":"_xlfn.XLOOKUP(tbllavage[[#This Row],[Code]],Tableau_basededonnée[Code],Tableau_basededonnée[Gazon],,0)","v":50}]
[311,"2017-01-11",{"$f":"_xlfn.XLOOKUP(tbllavage[[#This Row],[Code]],Tableau_basededonnée[Code],Tableau_basededonnée[Arbre],,0)","v":"AAAA"},{"$f":"_xlfn.XLOOKUP(tbllavage[[#This Row],[Code]],Tableau_basededonnée[Code],Tableau_basededonnée[Fleurs],,0)","v":"WWW"},{"$f":"_xlfn.XLOOKUP(tbllavage[[#This Row],[Code]],Tableau_basededonnée[Code],Tableau_basededonnée[Fruits],,0)","v":"VV"},{"$f":"_xlfn.XLOOKUP(tbllavage[[#This Row],[Code]],Tableau_basededonnée[Code],Tableau_basededonnée[Légumes],,0)","v":"SSS"},{"$f":"_xlfn.XLOOKUP(tbllavage[[#This Row],[Code]],Tableau_basededonnée[Code],Tableau_basededonnée[Nuage],,0)","v":1},{"$f":"_xlfn.XLOOKUP(tbllavage[[#This Row],[Code]],Tableau_basededonnée[Code],Tableau_basededonnée[Gazon],,0)","v":50}]
[310,"2017-01-13",{"$f":"_xlfn.XLOOKUP(tbllavage[[#This Row],[Code]],Tableau_basededonnée[Code],Tableau_basededonnée[Arbre],,0)","v":"AAAA"},{"$f":"_xlfn.XLOOKUP(tbllavage[[#This Row],[Code]],Tableau_basededonnée[Code],Tableau_basededonnée[Fleurs],,0)","v":"WWW"},{"$f":"_xlfn.XLOOKUP(tbllavage[[#This Row],[Code]],Tableau_basededonnée[Code],Tableau_basededonnée[Fruits],,0)","v":"XX"},{"$f":"_xlfn.XLOOKUP(tbllavage[[#This Row],[Code]],Tableau_basededonnée[Code],Tableau_basededonnée[Légumes],,0)","v":"QQQ"},{"$f":"_xlfn.XLOOKUP(tbllavage[[#This Row],[Code]],Tableau_basededonnée[Code],Tableau_basededonnée[Nuage],,0)","v":"1"},{"$f":"_xlfn.XLOOKUP(tbllavage[[#This Row],[Code]],Tableau_basededonnée[Code],Tableau_basededonnée[Gazon],,0)","v":10}]
[314,"2017-01-18",{"$f":"_xlfn.XLOOKUP(tbllavage[[#This Row],[Code]],Tableau_basededonnée[Code],Tableau_basededonnée[Arbre],,0)","v":"AAAA"},{"$f":"_xlfn.XLOOKUP(tbllavage[[#This Row],[Code]],Tableau_basededonnée[Code],Tableau_basededonnée[Fleurs],,0)","v":"WWW"},{"$f":"_xlfn.XLOOKUP(tbllavage[[#This Row],[Code]],Tableau_basededonnée[Code],Tableau_basededonnée[Fruits],,0)","v":"OO"},{"$f":"_xlfn.XLOOKUP(tbllavage[[#This Row],[Code]],Tableau_basededonnée[Code],Tableau_basededonnée[Légumes],,0)","v":"ZZZ"},{"$f":"_xlfn.XLOOKUP(tbllavage[[#This Row],[Code]],Tableau_basededonnée[Code],Tableau_basededonnée[Nuage],,0)","v":1},{"$f":"_xlfn.XLOOKUP(tbllavage[[#This Row],[Code]],Tableau_basededonnée[Code],Tableau_basededonnée[Gazon],,0)","v":25}]
[316,"2017-01-18",{"$f":"_xlfn.XLOOKUP(tbllavage[[#This Row],[Code]],Tableau_basededonnée[Code],Tableau_basededonnée[Arbre],,0)","v":"AAAA"},{"$f":"_xlfn.XLOOKUP(tbllavage[[#This Row],[Code]],Tableau_basededonnée[Code],Tableau_basededonnée[Fleurs],,0)","v":"WWW"},{"$f":"_xlfn.XLOOKUP(tbllavage[[#This Row],[Code]],Tableau_basededonnée[Code],Tableau_basededonnée[Fruits],,0)","v":"RR"},{"$f":"_xlfn.XLOOKUP(tbllavage[[#This Row],[Code]],Tableau_basededonnée[Code],Tableau_basededonnée[Légumes],,0)","v":"FFF"},{"$f":"_xlfn.XLOOKUP(tbllavage[[#This Row],[Code]],Tableau_basededonnée[Code],Tableau_basededonnée[Nuage],,0)","v":1},{"$f":"_xlfn.XLOOKUP(tbllavage[[#This Row],[Code]],Tableau_basededonnée[Code],Tableau_basededonnée[Gazon],,0)","v":100}]
[312,"2017-01-25",{"$f":"_xlfn.XLOOKUP(tbllavage[[#This Row],[Code]],Tableau_basededonnée[Code],Tableau_basededonnée[Arbre],,0)","v":"AAAA"},{"$f":"_xlfn.XLOOKUP(tbllavage[[#This Row],[Code]],Tableau_basededonnée[Code],Tableau_basededonnée[Fleurs],,0)","v":"WWW"},{"$f":"_xlfn.XLOOKUP(tbllavage[[#This Row],[Code]],Tableau_basededonnée[Code],Tableau_basededonnée[Fruits],,0)","v":"NN"},{"$f":"_xlfn.XLOOKUP(tbllavage[[#This Row],[Code]],Tableau_basededonnée[Code],Tableau_basededonnée[Légumes],,0)","v":"HHH"},{"$f":"_xlfn.XLOOKUP(tbllavage[[#This Row],[Code]],Tableau_basededonnée[Code],Tableau_basededonnée[Nuage],,0)","v":1},{"$f":"_xlfn.XLOOKUP(tbllavage[[#This Row],[Code]],Tableau_basededonnée[Code],Tableau_basededonnée[Gazon],,0)","v":150}]
[313,"2017-02-22",{"$f":"_xlfn.XLOOKUP(tbllavage[[#This Row],[Code]],Tableau_basededonnée[Code],Tableau_basededonnée[Arbre],,0)","v":"AAAA"},{"$f":"_xlfn.XLOOKUP(tbllavage[[#This Row],[Code]],Tableau_basededonnée[Code],Tableau_basededonnée[Fleurs],,0)","v":"WWW"},{"$f":"_xlfn.XLOOKUP(tbllavage[[#This Row],[Code]],Tableau_basededonnée[Code],Tableau_basededonnée[Fruits],,0)","v":"LL"},{"$f":"_xlfn.XLOOKUP(tbllavage[[#This Row],[Code]],Tableau_basededonnée[Code],Tableau_basededonnée[Légumes],,0)","v":"KKK"},{"$f":"_xlfn.XLOOKUP(tbllavage[[#This Row],[Code]],Tableau_basededonnée[Code],Tableau_basededonnée[Nuage],,0)","v":1},{"$f":"_xlfn.XLOOKUP(tbllavage[[#This Row],[Code]],Tableau_basededonnée[Code],Tableau_basededonnée[Gazon],,0)","v":100}]
[314,"2018-01-04",{"$f":"_xlfn.XLOOKUP(tbllavage[[#This Row],[Code]],Tableau_basededonnée[Code],Tableau_basededonnée[Arbre],,0)","v":"AAAA"},{"$f":"_xlfn.XLOOKUP(tbllavage[[#This Row],[Code]],Tableau_basededonnée[Code],Tableau_basededonnée[Fleurs],,0)","v":"WWW"},{"$f":"_xlfn.XLOOKUP(tbllavage[[#This Row],[Code]],Tableau_basededonnée[Code],Tableau_basededonnée[Fruits],,0)","v":"OO"},{"$f":"_xlfn.XLOOKUP(tbllavage[[#This Row],[Code]],Tableau_basededonnée[Code],Tableau_basededonnée[Légumes],,0)","v":"ZZZ"},{"$f":"_xlfn.XLOOKUP(tbllavage[[#This Row],[Code]],Tableau_basededonnée[Code],Tableau_basededonnée[Nuage],,0)","v":1},{"$f":"_xlfn.XLOOKUP(tbllavage[[#This Row],[Code]],Tableau_basededonnée[Code],Tableau_basededonnée[Gazon],,0)","v":25}]
[310,"2018-01-04",{"$f":"_xlfn.XLOOKUP(tbllavage[[#This Row],[Code]],Tableau_basededonnée[Code],Tableau_basededonnée[Arbre],,0)","v":"AAAA"},{"$f":"_xlfn.XLOOKUP(tbllavage[[#This Row],[Code]],Tableau_basededonnée[Code],Tableau_basededonnée[Fleurs],,0)","v":"WWW"},{"$f":"_xlfn.XLOOKUP(tbllavage[[#This Row],[Code]],Tableau_basededonnée[Code],Tableau_basededonnée[Fruits],,0)","v":"XX"},{"$f":"_xlfn.XLOOKUP(tbllavage[[#This Row],[Code]],Tableau_basededonnée[Code],Tableau_basededonnée[Légumes],,0)","v":"QQQ"},{"$f":"_xlfn.XLOOKUP(tbllavage[[#This Row],[Code]],Tableau_basededonnée[Code],Tableau_basededonnée[Nuage],,0)","v":"1"},{"$f":"_xlfn.XLOOKUP(tbllavage[[#This Row],[Code]],Tableau_basededonnée[Code],Tableau_basededonnée[Gazon],,0)","v":10}]
[315,"2018-01-09",{"$f":"_xlfn.XLOOKUP(tbllavage[[#This Row],[Code]],Tableau_basededonnée[Code],Tableau_basededonnée[Arbre],,0)","v":"AAAA"},{"$f":"_xlfn.XLOOKUP(tbllavage[[#This Row],[Code]],Tableau_basededonnée[Code],Tableau_basededonnée[Fleurs],,0)","v":"WWW"},{"$f":"_xlfn.XLOOKUP(tbllavage[[#This Row],[Code]],Tableau_basededonnée[Code],Tableau_basededonnée[Fruits],,0)","v":"UU"},{"$f":"_xlfn.XLOOKUP(tbllavage[[#This Row],[Code]],Tableau_basededonnée[Code],Tableau_basededonnée[Légumes],,0)","v":"EEE"},{"$f":"_xlfn.XLOOKUP(tbllavage[[#This Row],[Code]],Tableau_basededonnée[Code],Tableau_basededonnée[Nuage],,0)","v":1},{"$f":"_xlfn.XLOOKUP(tbllavage[[#This Row],[Code]],Tableau_basededonnée[Code],Tableau_basededonnée[Gazon],,0)","v":50}]
[311,"2018-01-18",{"$f":"_xlfn.XLOOKUP(tbllavage[[#This Row],[Code]],Tableau_basededonnée[Code],Tableau_basededonnée[Arbre],,0)","v":"AAAA"},{"$f":"_xlfn.XLOOKUP(tbllavage[[#This Row],[Code]],Tableau_basededonnée[Code],Tableau_basededonnée[Fleurs],,0)","v":"WWW"},{"$f":"_xlfn.XLOOKUP(tbllavage[[#This Row],[Code]],Tableau_basededonnée[Code],Tableau_basededonnée[Fruits],,0)","v":"VV"},{"$f":"_xlfn.XLOOKUP(tbllavage[[#This Row],[Code]],Tableau_basededonnée[Code],Tableau_basededonnée[Légumes],,0)","v":"SSS"},{"$f":"_xlfn.XLOOKUP(tbllavage[[#This Row],[Code]],Tableau_basededonnée[Code],Tableau_basededonnée[Nuage],,0)","v":1},{"$f":"_xlfn.XLOOKUP(tbllavage[[#This Row],[Code]],Tableau_basededonnée[Code],Tableau_basededonnée[Gazon],,0)","v":50}]
[312,"2018-03-22",{"$f":"_xlfn.XLOOKUP(tbllavage[[#This Row],[Code]],Tableau_basededonnée[Code],Tableau_basededonnée[Arbre],,0)","v":"AAAA"},{"$f":"_xlfn.XLOOKUP(tbllavage[[#This Row],[Code]],Tableau_basededonnée[Code],Tableau_basededonnée[Fleurs],,0)","v":"WWW"},{"$f":"_xlfn.XLOOKUP(tbllavage[[#This Row],[Code]],Tableau_basededonnée[Code],Tableau_basededonnée[Fruits],,0)","v":"NN"},{"$f":"_xlfn.XLOOKUP(tbllavage[[#This Row],[Code]],Tableau_basededonnée[Code],Tableau_basededonnée[Légumes],,0)","v":"HHH"},{"$f":"_xlfn.XLOOKUP(tbllavage[[#This Row],[Code]],Tableau_basededonnée[Code],Tableau_basededonnée[Nuage],,0)","v":1},{"$f":"_xlfn.XLOOKUP(tbllavage[[#This Row],[Code]],Tableau_basededonnée[Code],Tableau_basededonnée[Gazon],,0)","v":150}]
[316,"2018-04-11",{"$f":"_xlfn.XLOOKUP(tbllavage[[#This Row],[Code]],Tableau_basededonnée[Code],Tableau_basededonnée[Arbre],,0)","v":"AAAA"},{"$f":"_xlfn.XLOOKUP(tbllavage[[#This Row],[Code]],Tableau_basededonnée[Code],Tableau_basededonnée[Fleurs],,0)","v":"WWW"},{"$f":"_xlfn.XLOOKUP(tbllavage[[#This Row],[Code]],Tableau_basededonnée[Code],Tableau_basededonnée[Fruits],,0)","v":"RR"},{"$f":"_xlfn.XLOOKUP(tbllavage[[#This Row],[Code]],Tableau_basededonnée[Code],Tableau_basededonnée[Légumes],,0)","v":"FFF"},{"$f":"_xlfn.XLOOKUP(tbllavage[[#This Row],[Code]],Tableau_basededonnée[Code],Tableau_basededonnée[Nuage],,0)","v":1},{"$f":"_xlfn.XLOOKUP(tbllavage[[#This Row],[Code]],Tableau_basededonnée[Code],Tableau_basededonnée[Gazon],,0)","v":100}]
[313,"2018-04-25",{"$f":"_xlfn.XLOOKUP(tbllavage[[#This Row],[Code]],Tableau_basededonnée[Code],Tableau_basededonnée[Arbre],,0)","v":"AAAA"},{"$f":"_xlfn.XLOOKUP(tbllavage[[#This Row],[Code]],Tableau_basededonnée[Code],Tableau_basededonnée[Fleurs],,0)","v":"WWW"},{"$f":"_xlfn.XLOOKUP(tbllavage[[#This Row],[Code]],Tableau_basededonnée[Code],Tableau_basededonnée[Fruits],,0)","v":"LL"},{"$f":"_xlfn.XLOOKUP(tbllavage[[#This Row],[Code]],Tableau_basededonnée[Code],Tableau_basededonnée[Légumes],,0)","v":"KKK"},{"$f":"_xlfn.XLOOKUP(tbllavage[[#This Row],[Code]],Tableau_basededonnée[Code],Tableau_basededonnée[Nuage],,0)","v":1},{"$f":"_xlfn.XLOOKUP(tbllavage[[#This Row],[Code]],Tableau_basededonnée[Code],Tableau_basededonnée[Gazon],,0)","v":100}]
[310,"2019-01-11",{"$f":"_xlfn.XLOOKUP(tbllavage[[#This Row],[Code]],Tableau_basededonnée[Code],Tableau_basededonnée[Arbre],,0)","v":"AAAA"},{"$f":"_xlfn.XLOOKUP(tbllavage[[#This Row],[Code]],Tableau_basededonnée[Code],Tableau_basededonnée[Fleurs],,0)","v":"WWW"},{"$f":"_xlfn.XLOOKUP(tbllavage[[#This Row],[Code]],Tableau_basededonnée[Code],Tableau_basededonnée[Fruits],,0)","v":"XX"},{"$f":"_xlfn.XLOOKUP(tbllavage[[#This Row],[Code]],Tableau_basededonnée[Code],Tableau_basededonnée[Légumes],,0)","v":"QQQ"},{"$f":"_xlfn.XLOOKUP(tbllavage[[#This Row],[Code]],Tableau_basededonnée[Code],Tableau_basededonnée[Nuage],,0)","v":"1"},{"$f":"_xlfn.XLOOKUP(tbllavage[[#This Row],[Code]],Tableau_basededonnée[Code],Tableau_basededonnée[Gazon],,0)","v":10}]
[314,"2019-01-11",{"$f":"_xlfn.XLOOKUP(tbllavage[[#This Row],[Code]],Tableau_basededonnée[Code],Tableau_basededonnée[Arbre],,0)","v":"AAAA"},{"$f":"_xlfn.XLOOKUP(tbllavage[[#This Row],[Code]],Tableau_basededonnée[Code],Tableau_basededonnée[Fleurs],,0)","v":"WWW"},{"$f":"_xlfn.XLOOKUP(tbllavage[[#This Row],[Code]],Tableau_basededonnée[Code],Tableau_basededonnée[Fruits],,0)","v":"OO"},{"$f":"_xlfn.XLOOKUP(tbllavage[[#This Row],[Code]],Tableau_basededonnée[Code],Tableau_basededonnée[Légumes],,0)","v":"ZZZ"},{"$f":"_xlfn.XLOOKUP(tbllavage[[#This Row],[Code]],Tableau_basededonnée[Code],Tableau_basededonnée[Nuage],,0)","v":1},{"$f":"_xlfn.XLOOKUP(tbllavage[[#This Row],[Code]],Tableau_basededonnée[Code],Tableau_basededonnée[Gazon],,0)","v":25}]
[314,"2019-02-05",{"$f":"_xlfn.XLOOKUP(tbllavage[[#This Row],[Code]],Tableau_basededonnée[Code],Tableau_basededonnée[Arbre],,0)","v":"AAAA"},{"$f":"_xlfn.XLOOKUP(tbllavage[[#This Row],[Code]],Tableau_basededonnée[Code],Tableau_basededonnée[Fleurs],,0)","v":"WWW"},{"$f":"_xlfn.XLOOKUP(tbllavage[[#This Row],[Code]],Tableau_basededonnée[Code],Tableau_basededonnée[Fruits],,0)","v":"OO"},{"$f":"_xlfn.XLOOKUP(tbllavage[[#This Row],[Code]],Tableau_basededonnée[Code],Tableau_basededonnée[Légumes],,0)","v":"ZZZ"},{"$f":"_xlfn.XLOOKUP(tbllavage[[#This Row],[Code]],Tableau_basededonnée[Code],Tableau_basededonnée[Nuage],,0)","v":1},{"$f":"_xlfn.XLOOKUP(tbllavage[[#This Row],[Code]],Tableau_basededonnée[Code],Tableau_basededonnée[Gazon],,0)","v":25}]
[311,"2019-02-14",{"$f":"_xlfn.XLOOKUP(tbllavage[[#This Row],[Code]],Tableau_basededonnée[Code],Tableau_basededonnée[Arbre],,0)","v":"AAAA"},{"$f":"_xlfn.XLOOKUP(tbllavage[[#This Row],[Code]],Tableau_basededonnée[Code],Tableau_basededonnée[Fleurs],,0)","v":"WWW"},{"$f":"_xlfn.XLOOKUP(tbllavage[[#This Row],[Code]],Tableau_basededonnée[Code],Tableau_basededonnée[Fruits],,0)","v":"VV"},{"$f":"_xlfn.XLOOKUP(tbllavage[[#This Row],[Code]],Tableau_basededonnée[Code],Tableau_basededonnée[Légumes],,0)","v":"SSS"},{"$f":"_xlfn.XLOOKUP(tbllavage[[#This Row],[Code]],Tableau_basededonnée[Code],Tableau_basededonnée[Nuage],,0)","v":1},{"$f":"_xlfn.XLOOKUP(tbllavage[[#This Row],[Code]],Tableau_basededonnée[Code],Tableau_basededonnée[Gazon],,0)","v":50}]
[315,"2019-02-14",{"$f":"_xlfn.XLOOKUP(tbllavage[[#This Row],[Code]],Tableau_basededonnée[Code],Tableau_basededonnée[Arbre],,0)","v":"AAAA"},{"$f":"_xlfn.XLOOKUP(tbllavage[[#This Row],[Code]],Tableau_basededonnée[Code],Tableau_basededonnée[Fleurs],,0)","v":"WWW"},{"$f":"_xlfn.XLOOKUP(tbllavage[[#This Row],[Code]],Tableau_basededonnée[Code],Tableau_basededonnée[Fruits],,0)","v":"UU"},{"$f":"_xlfn.XLOOKUP(tbllavage[[#This Row],[Code]],Tableau_basededonnée[Code],Tableau_basededonnée[Légumes],,0)","v":"EEE"},{"$f":"_xlfn.XLOOKUP(tbllavage[[#This Row],[Code]],Tableau_basededonnée[Code],Tableau_basededonnée[Nuage],,0)","v":1},{"$f":"_xlfn.XLOOKUP(tbllavage[[#This Row],[Code]],Tableau_basededonnée[Code],Tableau_basededonnée[Gazon],,0)","v":50}]
[316,"2019-03-07",{"$f":"_xlfn.XLOOKUP(tbllavage[[#This Row],[Code]],Tableau_basededonnée[Code],Tableau_basededonnée[Arbre],,0)","v":"AAAA"},{"$f":"_xlfn.XLOOKUP(tbllavage[[#This Row],[Code]],Tableau_basededonnée[Code],Tableau_basededonnée[Fleurs],,0)","v":"WWW"},{"$f":"_xlfn.XLOOKUP(tbllavage[[#This Row],[Code]],Tableau_basededonnée[Code],Tableau_basededonnée[Fruits],,0)","v":"RR"},{"$f":"_xlfn.XLOOKUP(tbllavage[[#This Row],[Code]],Tableau_basededonnée[Code],Tableau_basededonnée[Légumes],,0)","v":"FFF"},{"$f":"_xlfn.XLOOKUP(tbllavage[[#This Row],[Code]],Tableau_basededonnée[Code],Tableau_basededonnée[Nuage],,0)","v":1},{"$f":"_xlfn.XLOOKUP(tbllavage[[#This Row],[Code]],Tableau_basededonnée[Code],Tableau_basededonnée[Gazon],,0)","v":100}]
[313,"2019-03-12",{"$f":"_xlfn.XLOOKUP(tbllavage[[#This Row],[Code]],Tableau_basededonnée[Code],Tableau_basededonnée[Arbre],,0)","v":"AAAA"},{"$f":"_xlfn.XLOOKUP(tbllavage[[#This Row],[Code]],Tableau_basededonnée[Code],Tableau_basededonnée[Fleurs],,0)","v":"WWW"},{"$f":"_xlfn.XLOOKUP(tbllavage[[#This Row],[Code]],Tableau_basededonnée[Code],Tableau_basededonnée[Fruits],,0)","v":"LL"},{"$f":"_xlfn.XLOOKUP(tbllavage[[#This Row],[Code]],Tableau_basededonnée[Code],Tableau_basededonnée[Légumes],,0)","v":"KKK"},{"$f":"_xlfn.XLOOKUP(tbllavage[[#This Row],[Code]],Tableau_basededonnée[Code],Tableau_basededonnée[Nuage],,0)","v":1},{"$f":"_xlfn.XLOOKUP(tbllavage[[#This Row],[Code]],Tableau_basededonnée[Code],Tableau_basededonnée[Gazon],,0)","v":100}]
[312,"2019-03-19",{"$f":"_xlfn.XLOOKUP(tbllavage[[#This Row],[Code]],Tableau_basededonnée[Code],Tableau_basededonnée[Arbre],,0)","v":"AAAA"},{"$f":"_xlfn.XLOOKUP(tbllavage[[#This Row],[Code]],Tableau_basededonnée[Code],Tableau_basededonnée[Fleurs],,0)","v":"WWW"},{"$f":"_xlfn.XLOOKUP(tbllavage[[#This Row],[Code]],Tableau_basededonnée[Code],Tableau_basededonnée[Fruits],,0)","v":"NN"},{"$f":"_xlfn.XLOOKUP(tbllavage[[#This Row],[Code]],Tableau_basededonnée[Code],Tableau_basededonnée[Légumes],,0)","v":"HHH"},{"$f":"_xlfn.XLOOKUP(tbllavage[[#This Row],[Code]],Tableau_basededonnée[Code],Tableau_basededonnée[Nuage],,0)","v":1},{"$f":"_xlfn.XLOOKUP(tbllavage[[#This Row],[Code]],Tableau_basededonnée[Code],Tableau_basededonnée[Gazon],,0)","v":150}]
[310,"2020-03-06",{"$f":"_xlfn.XLOOKUP(tbllavage[[#This Row],[Code]],Tableau_basededonnée[Code],Tableau_basededonnée[Arbre],,0)","v":"AAAA"},{"$f":"_xlfn.XLOOKUP(tbllavage[[#This Row],[Code]],Tableau_basededonnée[Code],Tableau_basededonnée[Fleurs],,0)","v":"WWW"},{"$f":"_xlfn.XLOOKUP(tbllavage[[#This Row],[Code]],Tableau_basededonnée[Code],Tableau_basededonnée[Fruits],,0)","v":"XX"},{"$f":"_xlfn.XLOOKUP(tbllavage[[#This Row],[Code]],Tableau_basededonnée[Code],Tableau_basededonnée[Légumes],,0)","v":"QQQ"},{"$f":"_xlfn.XLOOKUP(tbllavage[[#This Row],[Code]],Tableau_basededonnée[Code],Tableau_basededonnée[Nuage],,0)","v":"1"},{"$f":"_xlfn.XLOOKUP(tbllavage[[#This Row],[Code]],Tableau_basededonnée[Code],Tableau_basededonnée[Gazon],,0)","v":10}]
[311,"2020-03-27",{"$f":"_xlfn.XLOOKUP(tbllavage[[#This Row],[Code]],Tableau_basededonnée[Code],Tableau_basededonnée[Arbre],,0)","v":"AAAA"},{"$f":"_xlfn.XLOOKUP(tbllavage[[#This Row],[Code]],Tableau_basededonnée[Code],Tableau_basededonnée[Fleurs],,0)","v":"WWW"},{"$f":"_xlfn.XLOOKUP(tbllavage[[#This Row],[Code]],Tableau_basededonnée[Code],Tableau_basededonnée[Fruits],,0)","v":"VV"},{"$f":"_xlfn.XLOOKUP(tbllavage[[#This Row],[Code]],Tableau_basededonnée[Code],Tableau_basededonnée[Légumes],,0)","v":"SSS"},{"$f":"_xlfn.XLOOKUP(tbllavage[[#This Row],[Code]],Tableau_basededonnée[Code],Tableau_basededonnée[Nuage],,0)","v":1},{"$f":"_xlfn.XLOOKUP(tbllavage[[#This Row],[Code]],Tableau_basededonnée[Code],Tableau_basededonnée[Gazon],,0)","v":50}]
[314,"2020-04-10",{"$f":"_xlfn.XLOOKUP(tbllavage[[#This Row],[Code]],Tableau_basededonnée[Code],Tableau_basededonnée[Arbre],,0)","v":"AAAA"},{"$f":"_xlfn.XLOOKUP(tbllavage[[#This Row],[Code]],Tableau_basededonnée[Code],Tableau_basededonnée[Fleurs],,0)","v":"WWW"},{"$f":"_xlfn.XLOOKUP(tbllavage[[#This Row],[Code]],Tableau_basededonnée[Code],Tableau_basededonnée[Fruits],,0)","v":"OO"},{"$f":"_xlfn.XLOOKUP(tbllavage[[#This Row],[Code]],Tableau_basededonnée[Code],Tableau_basededonnée[Légumes],,0)","v":"ZZZ"},{"$f":"_xlfn.XLOOKUP(tbllavage[[#This Row],[Code]],Tableau_basededonnée[Code],Tableau_basededonnée[Nuage],,0)","v":1},{"$f":"_xlfn.XLOOKUP(tbllavage[[#This Row],[Code]],Tableau_basededonnée[Code],Tableau_basededonnée[Gazon],,0)","v":25}]
[314,"2020-04-10",{"$f":"_xlfn.XLOOKUP(tbllavage[[#This Row],[Code]],Tableau_basededonnée[Code],Tableau_basededonnée[Arbre],,0)","v":"AAAA"},{"$f":"_xlfn.XLOOKUP(tbllavage[[#This Row],[Code]],Tableau_basededonnée[Code],Tableau_basededonnée[Fleurs],,0)","v":"WWW"},{"$f":"_xlfn.XLOOKUP(tbllavage[[#This Row],[Code]],Tableau_basededonnée[Code],Tableau_basededonnée[Fruits],,0)","v":"OO"},{"$f":"_xlfn.XLOOKUP(tbllavage[[#This Row],[Code]],Tableau_basededonnée[Code],Tableau_basededonnée[Légumes],,0)","v":"ZZZ"},{"$f":"_xlfn.XLOOKUP(tbllavage[[#This Row],[Code]],Tableau_basededonnée[Code],Tableau_basededonnée[Nuage],,0)","v":1},{"$f":"_xlfn.XLOOKUP(tbllavage[[#This Row],[Code]],Tableau_basededonnée[Code],Tableau_basededonnée[Gazon],,0)","v":25}]
[316,"2020-04-21",{"$f":"_xlfn.XLOOKUP(tbllavage[[#This Row],[Code]],Tableau_basededonnée[Code],Tableau_basededonnée[Arbre],,0)","v":"AAAA"},{"$f":"_xlfn.XLOOKUP(tbllavage[[#This Row],[Code]],Tableau_basededonnée[Code],Tableau_basededonnée[Fleurs],,0)","v":"WWW"},{"$f":"_xlfn.XLOOKUP(tbllavage[[#This Row],[Code]],Tableau_basededonnée[Code],Tableau_basededonnée[Fruits],,0)","v":"RR"},{"$f":"_xlfn.XLOOKUP(tbllavage[[#This Row],[Code]],Tableau_basededonnée[Code],Tableau_basededonnée[Légumes],,0)","v":"FFF"},{"$f":"_xlfn.XLOOKUP(tbllavage[[#This Row],[Code]],Tableau_basededonnée[Code],Tableau_basededonnée[Nuage],,0)","v":1},{"$f":"_xlfn.XLOOKUP(tbllavage[[#This Row],[Code]],Tableau_basededonnée[Code],Tableau_basededonnée[Gazon],,0)","v":100}]
[316,"2020-04-21",{"$f":"_xlfn.XLOOKUP(tbllavage[[#This Row],[Code]],Tableau_basededonnée[Code],Tableau_basededonnée[Arbre],,0)","v":"AAAA"},{"$f":"_xlfn.XLOOKUP(tbllavage[[#This Row],[Code]],Tableau_basededonnée[Code],Tableau_basededonnée[Fleurs],,0)","v":"WWW"},{"$f":"_xlfn.XLOOKUP(tbllavage[[#This Row],[Code]],Tableau_basededonnée[Code],Tableau_basededonnée[Fruits],,0)","v":"RR"},{"$f":"_xlfn.XLOOKUP(tbllavage[[#This Row],[Code]],Tableau_basededonnée[Code],Tableau_basededonnée[Légumes],,0)","v":"FFF"},{"$f":"_xlfn.XLOOKUP(tbllavage[[#This Row],[Code]],Tableau_basededonnée[Code],Tableau_basededonnée[Nuage],,0)","v":1},{"$f":"_xlfn.XLOOKUP(tbllavage[[#This Row],[Code]],Tableau_basededonnée[Code],Tableau_basededonnée[Gazon],,0)","v":100}]
[312,"2020-05-14",{"$f":"_xlfn.XLOOKUP(tbllavage[[#This Row],[Code]],Tableau_basededonnée[Code],Tableau_basededonnée[Arbre],,0)","v":"AAAA"},{"$f":"_xlfn.XLOOKUP(tbllavage[[#This Row],[Code]],Tableau_basededonnée[Code],Tableau_basededonnée[Fleurs],,0)","v":"WWW"},{"$f":"_xlfn.XLOOKUP(tbllavage[[#This Row],[Code]],Tableau_basededonnée[Code],Tableau_basededonnée[Fruits],,0)","v":"NN"},{"$f":"_xlfn.XLOOKUP(tbllavage[[#This Row],[Code]],Tableau_basededonnée[Code],Tableau_basededonnée[Légumes],,0)","v":"HHH"},{"$f":"_xlfn.XLOOKUP(tbllavage[[#This Row],[Code]],Tableau_basededonnée[Code],Tableau_basededonnée[Nuage],,0)","v":1},{"$f":"_xlfn.XLOOKUP(tbllavage[[#This Row],[Code]],Tableau_basededonnée[Code],Tableau_basededonnée[Gazon],,0)","v":150}]
[312,"2020-05-14",{"$f":"_xlfn.XLOOKUP(tbllavage[[#This Row],[Code]],Tableau_basededonnée[Code],Tableau_basededonnée[Arbre],,0)","v":"AAAA"},{"$f":"_xlfn.XLOOKUP(tbllavage[[#This Row],[Code]],Tableau_basededonnée[Code],Tableau_basededonnée[Fleurs],,0)","v":"WWW"},{"$f":"_xlfn.XLOOKUP(tbllavage[[#This Row],[Code]],Tableau_basededonnée[Code],Tableau_basededonnée[Fruits],,0)","v":"NN"},{"$f":"_xlfn.XLOOKUP(tbllavage[[#This Row],[Code]],Tableau_basededonnée[Code],Tableau_basededonnée[Légumes],,0)","v":"HHH"},{"$f":"_xlfn.XLOOKUP(tbllavage[[#This Row],[Code]],Tableau_basededonnée[Code],Tableau_basededonnée[Nuage],,0)","v":1},{"$f":"_xlfn.XLOOKUP(tbllavage[[#This Row],[Code]],Tableau_basededonnée[Code],Tableau_basededonnée[Gazon],,0)","v":150}]
[315,"2020-05-18",{"$f":"_xlfn.XLOOKUP(tbllavage[[#This Row],[Code]],Tableau_basededonnée[Code],Tableau_basededonnée[Arbre],,0)","v":"AAAA"},{"$f":"_xlfn.XLOOKUP(tbllavage[[#This Row],[Code]],Tableau_basededonnée[Code],Tableau_basededonnée[Fleurs],,0)","v":"WWW"},{"$f":"_xlfn.XLOOKUP(tbllavage[[#This Row],[Code]],Tableau_basededonnée[Code],Tableau_basededonnée[Fruits],,0)","v":"UU"},{"$f":"_xlfn.XLOOKUP(tbllavage[[#This Row],[Code]],Tableau_basededonnée[Code],Tableau_basededonnée[Légumes],,0)","v":"EEE"},{"$f":"_xlfn.XLOOKUP(tbllavage[[#This Row],[Code]],Tableau_basededonnée[Code],Tableau_basededonnée[Nuage],,0)","v":1},{"$f":"_xlfn.XLOOKUP(tbllavage[[#This Row],[Code]],Tableau_basededonnée[Code],Tableau_basededonnée[Gazon],,0)","v":50}]
[315,"2020-05-18",{"$f":"_xlfn.XLOOKUP(tbllavage[[#This Row],[Code]],Tableau_basededonnée[Code],Tableau_basededonnée[Arbre],,0)","v":"AAAA"},{"$f":"_xlfn.XLOOKUP(tbllavage[[#This Row],[Code]],Tableau_basededonnée[Code],Tableau_basededonnée[Fleurs],,0)","v":"WWW"},{"$f":"_xlfn.XLOOKUP(tbllavage[[#This Row],[Code]],Tableau_basededonnée[Code],Tableau_basededonnée[Fruits],,0)","v":"UU"},{"$f":"_xlfn.XLOOKUP(tbllavage[[#This Row],[Code]],Tableau_basededonnée[Code],Tableau_basededonnée[Légumes],,0)","v":"EEE"},{"$f":"_xlfn.XLOOKUP(tbllavage[[#This Row],[Code]],Tableau_basededonnée[Code],Tableau_basededonnée[Nuage],,0)","v":1},{"$f":"_xlfn.XLOOKUP(tbllavage[[#This Row],[Code]],Tableau_basededonnée[Code],Tableau_basededonnée[Gazon],,0)","v":50}]
[313,"2020-05-26",{"$f":"_xlfn.XLOOKUP(tbllavage[[#This Row],[Code]],Tableau_basededonnée[Code],Tableau_basededonnée[Arbre],,0)","v":"AAAA"},{"$f":"_xlfn.XLOOKUP(tbllavage[[#This Row],[Code]],Tableau_basededonnée[Code],Tableau_basededonnée[Fleurs],,0)","v":"WWW"},{"$f":"_xlfn.XLOOKUP(tbllavage[[#This Row],[Code]],Tableau_basededonnée[Code],Tableau_basededonnée[Fruits],,0)","v":"LL"},{"$f":"_xlfn.XLOOKUP(tbllavage[[#This Row],[Code]],Tableau_basededonnée[Code],Tableau_basededonnée[Légumes],,0)","v":"KKK"},{"$f":"_xlfn.XLOOKUP(tbllavage[[#This Row],[Code]],Tableau_basededonnée[Code],Tableau_basededonnée[Nuage],,0)","v":1},{"$f":"_xlfn.XLOOKUP(tbllavage[[#This Row],[Code]],Tableau_basededonnée[Code],Tableau_basededonnée[Gazon],,0)","v":100}]
[313,"2020-05-26",{"$f":"_xlfn.XLOOKUP(tbllavage[[#This Row],[Code]],Tableau_basededonnée[Code],Tableau_basededonnée[Arbre],,0)","v":"AAAA"},{"$f":"_xlfn.XLOOKUP(tbllavage[[#This Row],[Code]],Tableau_basededonnée[Code],Tableau_basededonnée[Fleurs],,0)","v":"WWW"},{"$f":"_xlfn.XLOOKUP(tbllavage[[#This Row],[Code]],Tableau_basededonnée[Code],Tableau_basededonnée[Fruits],,0)","v":"LL"},{"$f":"_xlfn.XLOOKUP(tbllavage[[#This Row],[Code]],Tableau_basededonnée[Code],Tableau_basededonnée[Légumes],,0)","v":"KKK"},{"$f":"_xlfn.XLOOKUP(tbllavage[[#This Row],[Code]],Tableau_basededonnée[Code],Tableau_basededonnée[Nuage],,0)","v":1},{"$f":"_xlfn.XLOOKUP(tbllavage[[#This Row],[Code]],Tableau_basededonnée[Code],Tableau_basededonnée[Gazon],,0)","v":100}]
[310,"2021-03-09",{"$f":"_xlfn.XLOOKUP(tbllavage[[#This Row],[Code]],Tableau_basededonnée[Code],Tableau_basededonnée[Arbre],,0)","v":"AAAA"},{"$f":"_xlfn.XLOOKUP(tbllavage[[#This Row],[Code]],Tableau_basededonnée[Code],Tableau_basededonnée[Fleurs],,0)","v":"WWW"},{"$f":"_xlfn.XLOOKUP(tbllavage[[#This Row],[Code]],Tableau_basededonnée[Code],Tableau_basededonnée[Fruits],,0)","v":"XX"},{"$f":"_xlfn.XLOOKUP(tbllavage[[#This Row],[Code]],Tableau_basededonnée[Code],Tableau_basededonnée[Légumes],,0)","v":"QQQ"},{"$f":"_xlfn.XLOOKUP(tbllavage[[#This Row],[Code]],Tableau_basededonnée[Code],Tableau_basededonnée[Nuage],,0)","v":"1"},{"$f":"_xlfn.XLOOKUP(tbllavage[[#This Row],[Code]],Tableau_basededonnée[Code],Tableau_basededonnée[Gazon],,0)","v":10}]
[314,"2021-03-09",{"$f":"_xlfn.XLOOKUP(tbllavage[[#This Row],[Code]],Tableau_basededonnée[Code],Tableau_basededonnée[Arbre],,0)","v":"AAAA"},{"$f":"_xlfn.XLOOKUP(tbllavage[[#This Row],[Code]],Tableau_basededonnée[Code],Tableau_basededonnée[Fleurs],,0)","v":"WWW"},{"$f":"_xlfn.XLOOKUP(tbllavage[[#This Row],[Code]],Tableau_basededonnée[Code],Tableau_basededonnée[Fruits],,0)","v":"OO"},{"$f":"_xlfn.XLOOKUP(tbllavage[[#This Row],[Code]],Tableau_basededonnée[Code],Tableau_basededonnée[Légumes],,0)","v":"ZZZ"},{"$f":"_xlfn.XLOOKUP(tbllavage[[#This Row],[Code]],Tableau_basededonnée[Code],Tableau_basededonnée[Nuage],,0)","v":1},{"$f":"_xlfn.XLOOKUP(tbllavage[[#This Row],[Code]],Tableau_basededonnée[Code],Tableau_basededonnée[Gazon],,0)","v":25}]
[312,"2021-03-25",{"$f":"_xlfn.XLOOKUP(tbllavage[[#This Row],[Code]],Tableau_basededonnée[Code],Tableau_basededonnée[Arbre],,0)","v":"AAAA"},{"$f":"_xlfn.XLOOKUP(tbllavage[[#This Row],[Code]],Tableau_basededonnée[Code],Tableau_basededonnée[Fleurs],,0)","v":"WWW"},{"$f":"_xlfn.XLOOKUP(tbllavage[[#This Row],[Code]],Tableau_basededonnée[Code],Tableau_basededonnée[Fruits],,0)","v":"NN"},{"$f":"_xlfn.XLOOKUP(tbllavage[[#This Row],[Code]],Tableau_basededonnée[Code],Tableau_basededonnée[Légumes],,0)","v":"HHH"},{"$f":"_xlfn.XLOOKUP(tbllavage[[#This Row],[Code]],Tableau_basededonnée[Code],Tableau_basededonnée[Nuage],,0)","v":1},{"$f":"_xlfn.XLOOKUP(tbllavage[[#This Row],[Code]],Tableau_basededonnée[Code],Tableau_basededonnée[Gazon],,0)","v":150}]
[315,"2021-03-30",{"$f":"_xlfn.XLOOKUP(tbllavage[[#This Row],[Code]],Tableau_basededonnée[Code],Tableau_basededonnée[Arbre],,0)","v":"AAAA"},{"$f":"_xlfn.XLOOKUP(tbllavage[[#This Row],[Code]],Tableau_basededonnée[Code],Tableau_basededonnée[Fleurs],,0)","v":"WWW"},{"$f":"_xlfn.XLOOKUP(tbllavage[[#This Row],[Code]],Tableau_basededonnée[Code],Tableau_basededonnée[Fruits],,0)","v":"UU"},{"$f":"_xlfn.XLOOKUP(tbllavage[[#This Row],[Code]],Tableau_basededonnée[Code],Tableau_basededonnée[Légumes],,0)","v":"EEE"},{"$f":"_xlfn.XLOOKUP(tbllavage[[#This Row],[Code]],Tableau_basededonnée[Code],Tableau_basededonnée[Nuage],,0)","v":1},{"$f":"_xlfn.XLOOKUP(tbllavage[[#This Row],[Code]],Tableau_basededonnée[Code],Tableau_basededonnée[Gazon],,0)","v":50}]
[311,"2021-04-27",{"$f":"_xlfn.XLOOKUP(tbllavage[[#This Row],[Code]],Tableau_basededonnée[Code],Tableau_basededonnée[Arbre],,0)","v":"AAAA"},{"$f":"_xlfn.XLOOKUP(tbllavage[[#This Row],[Code]],Tableau_basededonnée[Code],Tableau_basededonnée[Fleurs],,0)","v":"WWW"},{"$f":"_xlfn.XLOOKUP(tbllavage[[#This Row],[Code]],Tableau_basededonnée[Code],Tableau_basededonnée[Fruits],,0)","v":"VV"},{"$f":"_xlfn.XLOOKUP(tbllavage[[#This Row],[Code]],Tableau_basededonnée[Code],Tableau_basededonnée[Légumes],,0)","v":"SSS"},{"$f":"_xlfn.XLOOKUP(tbllavage[[#This Row],[Code]],Tableau_basededonnée[Code],Tableau_basededonnée[Nuage],,0)","v":1},{"$f":"_xlfn.XLOOKUP(tbllavage[[#This Row],[Code]],Tableau_basededonnée[Code],Tableau_basededonnée[Gazon],,0)","v":50}]
[316,"2021-10-20",{"$f":"_xlfn.XLOOKUP(tbllavage[[#This Row],[Code]],Tableau_basededonnée[Code],Tableau_basededonnée[Arbre],,0)","v":"AAAA"},{"$f":"_xlfn.XLOOKUP(tbllavage[[#This Row],[Code]],Tableau_basededonnée[Code],Tableau_basededonnée[Fleurs],,0)","v":"WWW"},{"$f":"_xlfn.XLOOKUP(tbllavage[[#This Row],[Code]],Tableau_basededonnée[Code],Tableau_basededonnée[Fruits],,0)","v":"RR"},{"$f":"_xlfn.XLOOKUP(tbllavage[[#This Row],[Code]],Tableau_basededonnée[Code],Tableau_basededonnée[Légumes],,0)","v":"FFF"},{"$f":"_xlfn.XLOOKUP(tbllavage[[#This Row],[Code]],Tableau_basededonnée[Code],Tableau_basededonnée[Nuage],,0)","v":1},{"$f":"_xlfn.XLOOKUP(tbllavage[[#This Row],[Code]],Tableau_basededonnée[Code],Tableau_basededonnée[Gazon],,0)","v":100}]
[313,"2021-11-24",{"$f":"_xlfn.XLOOKUP(tbllavage[[#This Row],[Code]],Tableau_basededonnée[Code],Tableau_basededonnée[Arbre],,0)","v":"AAAA"},{"$f":"_xlfn.XLOOKUP(tbllavage[[#This Row],[Code]],Tableau_basededonnée[Code],Tableau_basededonnée[Fleurs],,0)","v":"WWW"},{"$f":"_xlfn.XLOOKUP(tbllavage[[#This Row],[Code]],Tableau_basededonnée[Code],Tableau_basededonnée[Fruits],,0)","v":"LL"},{"$f":"_xlfn.XLOOKUP(tbllavage[[#This Row],[Code]],Tableau_basededonnée[Code],Tableau_basededonnée[Légumes],,0)","v":"KKK"},{"$f":"_xlfn.XLOOKUP(tbllavage[[#This Row],[Code]],Tableau_basededonnée[Code],Tableau_basededonnée[Nuage],,0)","v":1},{"$f":"_xlfn.XLOOKUP(tbllavage[[#This Row],[Code]],Tableau_basededonnée[Code],Tableau_basededonnée[Gazon],,0)","v":100}]

{"sheet":"Basededonnée","index":1,"n_rows":8,"n_cols":10,"rows_kept":8,"cut":false,"hidden":false,"merged":[]}
["Code","Date","Mois","Année","Arbre","Fleurs","Fruits","Légumes","Nuage","Gazon"]
[310,{"$f":"_xlfn.AGGREGATE(14,6,(Achat!$B$3:$B$56/(Achat!$A$3:$A$56=A2)),1)*1","v":"2021-03-09"},{"$f":"PROPER(TEXT(B2,\"mmmm\"))","v":"Mars"},{"$f":"YEAR(Tableau_basededonnée[[#This Row],[Date]])","v":2021},"AAAA","WWW","XX","QQQ","1",10]
[311,{"$f":"_xlfn.AGGREGATE(14,6,(Achat!$B$3:$B$56/(Achat!$A$3:$A$56=A3)),1)*1","v":"2021-04-27"},"Avril",{"$f":"YEAR(Tableau_basededonnée[[#This Row],[Date]])","v":2021},"AAAA","WWW","VV","SSS",1,50]
[312,{"$f":"_xlfn.AGGREGATE(14,6,(Achat!$B$3:$B$56/(Achat!$A$3:$A$56=A4)),1)*1","v":"2021-03-25"},"Mars",{"$f":"YEAR(Tableau_basededonnée[[#This Row],[Date]])","v":2021},"AAAA","WWW","NN","HHH",1,150]
[313,{"$f":"_xlfn.AGGREGATE(14,6,(Achat!$B$3:$B$56/(Achat!$A$3:$A$56=A5)),1)*1","v":"2021-11-24"},"Novembre",{"$f":"YEAR(Tableau_basededonnée[[#This Row],[Date]])","v":2021},"AAAA","WWW","LL","KKK",1,100]
[314,{"$f":"_xlfn.AGGREGATE(14,6,(Achat!$B$3:$B$56/(Achat!$A$3:$A$56=A6)),1)*1","v":"2021-03-09"},"Mars",{"$f":"YEAR(Tableau_basededonnée[[#This Row],[Date]])","v":2021},"AAAA","WWW","OO","ZZZ",1,25]
[315,{"$f":"_xlfn.AGGREGATE(14,6,(Achat!$B$3:$B$56/(Achat!$A$3:$A$56=A7)),1)*1","v":"2021-03-30"},"Mars",{"$f":"YEAR(Tableau_basededonnée[[#This Row],[Date]])","v":2021},"AAAA","WWW","UU","EEE",1,50]
[316,{"$f":"_xlfn.AGGREGATE(14,6,(Achat!$B$3:$B$56/(Achat!$A$3:$A$56=A8)),1)*1","v":"2021-10-20"},"Octobre",{"$f":"YEAR(Tableau_basededonnée[[#This Row],[Date]])","v":2021},"AAAA","WWW","RR","FFF",1,100]

{"sheet":"Tableau de bord","index":2,"n_rows":8,"n_cols":15,"rows_kept":8,"cut":false,"hidden":false,"merged":[]}
["Code","Arbre","Fleurs","Fruits","légumes","Nuage","Gazon","2015","2016","2017","2018","2019","2020","2021","2022"]
[310,"AAAA","WWW","XX","QQQ","1",10,{"$f":"IFERROR(INDEX(tbllavage[Date],(MATCH(1,(tbllavage[Code]=Tableau_de_bord[[#This Row],[Code]])*(YEAR(tbllavage[Date])=VALUE(H$1)),0))),\"\")","v":"2015-01-16"},{"$f":"IFERROR(INDEX(tbllavage[Date],(MATCH(1,(tbllavage[Code]=Tableau_de_bord[[#This Row],[Code]])*(YEAR(tbllavage[Date])=VALUE(I$1)),0))),\"\")","v":"2016-02-05"},{"$f":"IFERROR(INDEX(tbllavage[Date],(MATCH(1,(tbllavage[Code]=Tableau_de_bord[[#This Row],[Code]])*(YEAR(tbllavage[Date])=VALUE(J$1)),0))),\"\")","v":"2017-01-13"},{"$f":"IFERROR(INDEX(tbllavage[Date],(MATCH(1,(tbllavage[Code]=Tableau_de_bord[[#This Row],[Code]])*(YEAR(tbllavage[Date])=VALUE(K$1)),0))),\"\")","v":"2018-01-04"},{"$f":"IFERROR(INDEX(tbllavage[Date],(MATCH(1,(tbllavage[Code]=Tableau_de_bord[[#This Row],[Code]])*(YEAR(tbllavage[Date])=VALUE(L$1)),0))),\"\")","v":"2019-01-11"},{"$f":"IFERROR(INDEX(tbllavage[Date],(MATCH(1,(tbllavage[Code]=Tableau_de_bord[[#This Row],[Code]])*(YEAR(tbllavage[Date])=VALUE(M$1)),0))),\"\")","v":"2020-03-06"},{"$f":"IFERROR(INDEX(tbllavage[Date],(MATCH(1,(tbllavage[Code]=Tableau_de_bord[[#This Row],[Code]])*(YEAR(tbllavage[Date])=VALUE(N$1)),0))),\"\")","v":"2021-03-09"},{"$f":"IFERROR(INDEX(tbllavage[Date],(MATCH(1,(tbllavage[Code]=Tableau_de_bord[[#This Row],[Code]])*(YEAR(tbllavage[Date])=VALUE(O$1)),0))),\"\")","v":""}]
[311,"AAAA","WWW","VV","SSS",1,50,{"$f":"IFERROR(INDEX(tbllavage[Date],(MATCH(1,(tbllavage[Code]=Tableau_de_bord[[#This Row],[Code]])*(YEAR(tbllavage[Date])=VALUE(H$1)),0))),\"\")","v":"2015-03-20"},{"$f":"IFERROR(INDEX(tbllavage[Date],(MATCH(1,(tbllavage[Code]=Tableau_de_bord[[#This Row],[Code]])*(YEAR(tbllavage[Date])=VALUE(I$1)),0))),\"\")","v":"2016-01-15"},{"$f":"IFERROR(INDEX(tbllavage[Date],(MATCH(1,(tbllavage[Code]=Tableau_de_bord[[#This Row],[Code]])*(YEAR(tbllavage[Date])=VALUE(J$1)),0))),\"\")","v":"2017-01-11"},{"$f":"IFERROR(INDEX(tbllavage[Date],(MATCH(1,(tbllavage[Code]=Tableau_de_bord[[#This Row],[Code]])*(YEAR(tbllavage[Date])=VALUE(K$1)),0))),\"\")","v":"2018-01-18"},{"$f":"IFERROR(INDEX(tbllavage[Date],(MATCH(1,(tbllavage[Code]=Tableau_de_bord[[#This Row],[Code]])*(YEAR(tbllavage[Date])=VALUE(L$1)),0))),\"\")","v":"2019-02-14"},{"$f":"IFERROR(INDEX(tbllavage[Date],(MATCH(1,(tbllavage[Code]=Tableau_de_bord[[#This Row],[Code]])*(YEAR(tbllavage[Date])=VALUE(M$1)),0))),\"\")","v":"2020-03-27"},{"$f":"IFERROR(INDEX(tbllavage[Date],(MATCH(1,(tbllavage[Code]=Tableau_de_bord[[#This Row],[Code]])*(YEAR(tbllavage[Date])=VALUE(N$1)),0))),\"\")","v":"2021-04-27"},{"$f":"IFERROR(INDEX(tbllavage[Date],(MATCH(1,(tbllavage[Code]=Tableau_de_bord[[#This Row],[Code]])*(YEAR(tbllavage[Date])=VALUE(O$1)),0))),\"\")","v":""}]
[312,"AAAA","WWW","NN","HHH",1,150,{"$f":"IFERROR(INDEX(tbllavage[Date],(MATCH(1,(tbllavage[Code]=Tableau_de_bord[[#This Row],[Code]])*(YEAR(tbllavage[Date])=VALUE(H$1)),0))),\"\")","v":"2015-02-13"},{"$f":"IFERROR(INDEX(tbllavage[Date],(MATCH(1,(tbllavage[Code]=Tableau_de_bord[[#This Row],[Code]])*(YEAR(tbllavage[Date])=VALUE(I$1)),0))),\"\")","v":"2016-02-03"},{"$f":"IFERROR(INDEX(tbllavage[Date],(MATCH(1,(tbllavage[Code]=Tableau_de_bord[[#This Row],[Code]])*(YEAR(tbllavage[Date])=VALUE(J$1)),0))),\"\")","v":"2017-01-25"},{"$f":"IFERROR(INDEX(tbllavage[Date],(MATCH(1,(tbllavage[Code]=Tableau_de_bord[[#This Row],[Code]])*(YEAR(tbllavage[Date])=VALUE(K$1)),0))),\"\")","v":"2018-03-22"},{"$f":"IFERROR(INDEX(tbllavage[Date],(MATCH(1,(tbllavage[Code]=Tableau_de_bord[[#This Row],[Code]])*(YEAR(tbllavage[Date])=VALUE(L$1)),0))),\"\")","v":"2019-03-19"},{"$f":"IFERROR(INDEX(tbllavage[Date],(MATCH(1,(tbllavage[Code]=Tableau_de_bord[[#This Row],[Code]])*(YEAR(tbllavage[Date])=VALUE(M$1)),0))),\"\")","v":"2020-05-14"},{"$f":"IFERROR(INDEX(tbllavage[Date],(MATCH(1,(tbllavage[Code]=Tableau_de_bord[[#This Row],[Code]])*(YEAR(tbllavage[Date])=VALUE(N$1)),0))),\"\")","v":"2021-03-25"},{"$f":"IFERROR(INDEX(tbllavage[Date],(MATCH(1,(tbllavage[Code]=Tableau_de_bord[[#This Row],[Code]])*(YEAR(tbllavage[Date])=VALUE(O$1)),0))),\"\")","v":""}]
[313,"AAAA","WWW","LL","KKK",1,100,{"$f":"IFERROR(INDEX(tbllavage[Date],(MATCH(1,(tbllavage[Code]=Tableau_de_bord[[#This Row],[Code]])*(YEAR(tbllavage[Date])=VALUE(H$1)),0))),\"\")","v":"2015-03-06"},{"$f":"IFERROR(INDEX(tbllavage[Date],(MATCH(1,(tbllavage[Code]=Tableau_de_bord[[#This Row],[Code]])*(YEAR(tbllavage[Date])=VALUE(I$1)),0))),\"\")","v":"2016-02-17"},{"$f":"IFERROR(INDEX(tbllavage[Date],(MATCH(1,(tbllavage[Code]=Tableau_de_bord[[#This Row],[Code]])*(YEAR(tbllavage[Date])=VALUE(J$1)),0))),\"\")","v":"2017-02-22"},{"$f":"IFERROR(INDEX(tbllavage[Date],(MATCH(1,(tbllavage[Code]=Tableau_de_bord[[#This Row],[Code]])*(YEAR(tbllavage[Date])=VALUE(K$1)),0))),\"\")","v":"2018-04-25"},{"$f":"IFERROR(INDEX(tbllavage[Date],(MATCH(1,(tbllavage[Code]=Tableau_de_bord[[#This Row],[Code]])*(YEAR(tbllavage[Date])=VALUE(L$1)),0))),\"\")","v":"2019-03-12"},{"$f":"IFERROR(INDEX(tbllavage[Date],(MATCH(1,(tbllavage[Code]=Tableau_de_bord[[#This Row],[Code]])*(YEAR(tbllavage[Date])=VALUE(M$1)),0))),\"\")","v":"2020-05-26"},{"$f":"IFERROR(INDEX(tbllavage[Date],(MATCH(1,(tbllavage[Code]=Tableau_de_bord[[#This Row],[Code]])*(YEAR(tbllavage[Date])=VALUE(N$1)),0))),\"\")","v":"2021-11-24"},{"$f":"IFERROR(INDEX(tbllavage[Date],(MATCH(1,(tbllavage[Code]=Tableau_de_bord[[#This Row],[Code]])*(YEAR(tbllavage[Date])=VALUE(O$1)),0))),\"\")","v":""}]
[314,"AAAA","WWW","OO","ZZZ",1,25,{"$f":"IFERROR(INDEX(tbllavage[Date],(MATCH(1,(tbllavage[Code]=Tableau_de_bord[[#This Row],[Code]])*(YEAR(tbllavage[Date])=VALUE(H$1)),0))),\"\")","v":"2015-02-20"},{"$f":"IFERROR(INDEX(tbllavage[Date],(MATCH(1,(tbllavage[Code]=Tableau_de_bord[[#This Row],[Code]])*(YEAR(tbllavage[Date])=VALUE(I$1)),0))),\"\")","v":"2016-01-20"},{"$f":"IFERROR(INDEX(tbllavage[Date],(MATCH(1,(tbllavage[Code]=Tableau_de_bord[[#This Row],[Code]])*(YEAR(tbllavage[Date])=VALUE(J$1)),0))),\"\")","v":"2017-01-18"},{"$f":"IFERROR(INDEX(tbllavage[Date],(MATCH(1,(tbllavage[Code]=Tableau_de_bord[[#This Row],[Code]])*(YEAR(tbllavage[Date])=VALUE(K$1)),0))),\"\")","v":"2018-01-04"},{"$f":"IFERROR(INDEX(tbllavage[Date],(MATCH(1,(tbllavage[Code]=Tableau_de_bord[[#This Row],[Code]])*(YEAR(tbllavage[Date])=VALUE(L$1)),0))),\"\")","v":"2019-01-11"},{"$f":"IFERROR(INDEX(tbllavage[Date],(MATCH(1,(tbllavage[Code]=Tableau_de_bord[[#This Row],[Code]])*(YEAR(tbllavage[Date])=VALUE(M$1)),0))),\"\")","v":"2020-04-10"},{"$f":"IFERROR(INDEX(tbllavage[Date],(MATCH(1,(tbllavage[Code]=Tableau_de_bord[[#This Row],[Code]])*(YEAR(tbllavage[Date])=VALUE(N$1)),0))),\"\")","v":"2021-03-09"},{"$f":"IFERROR(INDEX(tbllavage[Date],(MATCH(1,(tbllavage[Code]=Tableau_de_bord[[#This Row],[Code]])*(YEAR(tbllavage[Date])=VALUE(O$1)),0))),\"\")","v":""}]
[315,"AAAA","WWW","UU","EEE",1,50,{"$f":"IFERROR(INDEX(tbllavage[Date],(MATCH(1,(tbllavage[Code]=Tableau_de_bord[[#This Row],[Code]])*(YEAR(tbllavage[Date])=VALUE(H$1)),0))),\"\")","v":"2015-03-27"},{"$f":"IFERROR(INDEX(tbllavage[Date],(MATCH(1,(tbllavage[Code]=Tableau_de_bord[[#This Row],[Code]])*(YEAR(tbllavage[Date])=VALUE(I$1)),0))),\"\")","v":"2016-02-05"},{"$f":"IFERROR(INDEX(tbllavage[Date],(MATCH(1,(tbllavage[Code]=Tableau_de_bord[[#This Row],[Code]])*(YEAR(tbllavage[Date])=VALUE(J$1)),0))),\"\")","v":""},{"$f":"IFERROR(INDEX(tbllavage[Date],(MATCH(1,(tbllavage[Code]=Tableau_de_bord[[#This Row],[Code]])*(YEAR(tbllavage[Date])=VALUE(K$1)),0))),\"\")","v":"2018-01-09"},{"$f":"IFERROR(INDEX(tbllavage[Date],(MATCH(1,(tbllavage[Code]=Tableau_de_bord[[#This Row],[Code]])*(YEAR(tbllavage[Date])=VALUE(L$1)),0))),\"\")","v":"2019-02-14"},{"$f":"IFERROR(INDEX(tbllavage[Date],(MATCH(1,(tbllavage[Code]=Tableau_de_bord[[#This Row],[Code]])*(YEAR(tbllavage[Date])=VALUE(M$1)),0))),\"\")","v":"2020-05-18"},{"$f":"IFERROR(INDEX(tbllavage[Date],(MATCH(1,(tbllavage[Code]=Tableau_de_bord[[#This Row],[Code]])*(YEAR(tbllavage[Date])=VALUE(N$1)),0))),\"\")","v":"2021-03-30"},{"$f":"IFERROR(INDEX(tbllavage[Date],(MATCH(1,(tbllavage[Code]=Tableau_de_bord[[#This Row],[Code]])*(YEAR(tbllavage[Date])=VALUE(O$1)),0))),\"\")","v":""}]
[316,"AAAA","WWW","RR","FFF",1,100,{"$f":"IFERROR(INDEX(tbllavage[Date],(MATCH(1,(tbllavage[Code]=Tableau_de_bord[[#This Row],[Code]])*(YEAR(tbllavage[Date])=VALUE(H$1)),0))),\"\")","v":"2015-02-27"},{"$f":"IFERROR(INDEX(tbllavage[Date],(MATCH(1,(tbllavage[Code]=Tableau_de_bord[[#This Row],[Code]])*(YEAR(tbllavage[Date])=VALUE(I$1)),0))),\"\")","v":""},{"$f":"IFERROR(INDEX(tbllavage[Date],(MATCH(1,(tbllavage[Code]=Tableau_de_bord[[#This Row],[Code]])*(YEAR(tbllavage[Date])=VALUE(J$1)),0))),\"\")","v":"2017-01-18"},{"$f":"IFERROR(INDEX(tbllavage[Date],(MATCH(1,(tbllavage[Code]=Tableau_de_bord[[#This Row],[Code]])*(YEAR(tbllavage[Date])=VALUE(K$1)),0))),\"\")","v":"2018-04-11"},{"$f":"IFERROR(INDEX(tbllavage[Date],(MATCH(1,(tbllavage[Code]=Tableau_de_bord[[#This Row],[Code]])*(YEAR(tbllavage[Date])=VALUE(L$1)),0))),\"\")","v":"2019-03-07"},{"$f":"IFERROR(INDEX(tbllavage[Date],(MATCH(1,(tbllavage[Code]=Tableau_de_bord[[#This Row],[Code]])*(YEAR(tbllavage[Date])=VALUE(M$1)),0))),\"\")","v":"2020-04-21"},{"$f":"IFERROR(INDEX(tbllavage[Date],(MATCH(1,(tbllavage[Code]=Tableau_de_bord[[#This Row],[Code]])*(YEAR(tbllavage[Date])=VALUE(N$1)),0))),\"\")","v":"2021-10-20"},{"$f":"IFERROR(INDEX(tbllavage[Date],(MATCH(1,(tbllavage[Code]=Tableau_de_bord[[#This Row],[Code]])*(YEAR(tbllavage[Date])=VALUE(O$1)),0))),\"\")","v":""}]

{"sheet":"Feuil1","index":3,"n_rows":1382,"n_cols":5,"rows_kept":1382,"cut":false,"hidden":true,"merged":[]}
["Désignation","Lettre de colonne","N° de colonne","Désignation txt","Désignation tableau"]
["Code","A",1,"txtcode"]
["Date","B",2]
["Mois","C",3]
["Année","D",4]
["Secteur","E",5,"cbosecteur","tblsecteur"]
["Syndicat","F",6,"cbosyndicat","tblsyndicat"]
["Communes","G",7,"cbocommune","tblcommune"]
["Réservoir","H",8,"txtréservoir","tblréservoir"]
["Cuve(s)","I",9,"cbocuve","tblcuve"]
["Capacité","J",10,"lblcapacité","tblcapacité"]
["Réactif","K",11,"lblréactif","tblréactif"]
["Echelle cuve","L",12,"lblechellecuve","tblechelle_cuve"]
["Revêtement Int Cuve","M",13,"cborevetement_int_cuve","tblrevetement_int_cuve"]
["Matériau  conduite cuve","N",14,"cbomateriau_conduite_cuve","tblmateriau_conduite_cuve"]
["Conduites cuve","O",15,"cboconduites_cuve","tblconduites_cuve"]
["Crépine (s)","P",16,"cbocrepine","tblcrepine"]
["Parois cuve","Q",17,"cboparois_cuve","tblparois_cuve"]
["Plafond cuve","R",18,"cboplafond_cuve","tblplafond_cuve"]
["Robinetterie cuve","S",19,"cborobinetterie_cuve","tblrobinetterie_cuve"]
["Radier","T",20,"cboradier","tblradier"]
["Vidange","U",21,"cbovidange","tblvidange"]
["Encrassement cuve","V",22,"cboencrassement","tblencrassement"]
["Parois chambre des vannes","W",23,"cboparois_chambre_des_vannes","tblparois_chambre_des_vannes"]
["Plafond chambre des vannes","X",24,"cboplafond_chambre_des_vannes","tblplafond_chambre_des_vannes"]
["Ventilation","Y",25,"cboventilation","tblventilation"]
["Echelles chambre des vannes","Z",26,"cboechelle_chambre_des_vannes","tblechelle_chambre_des_vannes"]
["Matériau conduites chambre des vannes","AA",27,"cbomateriau_conduit_chambre_des_vannes","tblmateriau_conduit_chambre_des_vannes"]
["Conduites chambre des vannes","AB",28,"cboconduit_chambre_des_vannes","tblconduit_chambre_des_vannes"]
["Robinetterie chambre des vannes","AC",29,"cborobinetterie_chambre_des_vannes","tblrobinetterie_chambre_des_vannes"]
["Sol chambre des vannes","AD",30,"cbosol_chambre_des_vannes","tblsol_chambre_des_vannes"]
["Nettoyage chambre des vannes","AE",31,"cbonettoyage_chambre_des_vannes","tblnettoyage_chambre_des_vannes"]
["Porte","AF",32,"cboporte","tblporte"]
["Serrure","AG",33,"cboserrure","tblserrure"]
["Peinture porte","AH",34,"cbopeinture_porte","tblpeinture_porte"]
["Prise d'eau lavage","AI",35,"cboprise_eau_lavage","tblprise_eau_lavage"]
["Electricité","AJ",36,"cboelectricité","tblelectricité"]
["Peinture EXT","AK",37,"cbopeinture_ext","tblpeinture_ext"]
["Peinture INT","AL",38,"cbopeinture_int","tblpeinture_int"]
["Peinture  tuyaux","AM",39,"cbopeinture_tuyaux","tblpeinture_tuyaux"]
["Robinet ARS","AN",40,"cborobinet_ars","tblrobinet_ars"]
["Sécurité","AO",41,"cbosécurité","tblsécurité"]
["Passerelle","AP",42,"cbopasserelle","tblpasserelle"]
["Garde-corps","AQ",43,"cbogarde_corps","tblgarde_corps"]
["Moustiquaire trappe d'accès","AR",44,"cbomoustiquaire_trappe_accés","tblmoustiquaire_trappe_accés"]
["Clôture","AS",45,"cbocloture","tblcloture"]
["Chemin d'accès","AT",46,"cbochemin_d_accés","tblchemin_d_accés"]
["Capot foug ","AU",47,"cbocapot_foug","tblcapot_foug"]
["Cheminée ventilation","AV",48,"cbocheminée_ventilation","tblcheminée_ventilation"]
["Patte à cadenas","AW",49,"cbopatte_à_cadenas","tblpatte_à_cadenas"]
["Observation(s)","AX",50,"txtobservation"]
[]
[]
[]
[]
[]
[]
[]
[]
[]
[]
[]
[]
[]
[]
[]
[]
[]
[]
[]
[]
[]
[]
[]
[]
[]
[]
[]
[]
[]
[]
[]
[]
[]
[]
[]
[]
[]
[]
[]
[]
[]
[]
[]
[]
[]
[]
[]
[]
[]
[]
[]
[]
[]
[]
[]
[]
[]
[]
[]
[]
[]
[]
[]
[]
[]
[]
[]
[]
[]
[]
[]
[]
[]
[]
[]
[]
[]
[]
[]
[]
[]
[]
[]
[]
[]
[]
[]
[]
[]
[]
[]
[]
[]
[]
[]
[]
[]
[]
[]
[]
[]
[]
[]
[]
[]
[]
[]
[]
[]
[]
[]
[]
[]
[]
[]
[]
[]
[]
[]
[]
[]
[]
[]
[]
[]
[]
[]
[]
[]
[]
[]
[]
[]
[]
[]
[]
[]
[]
[]
[]
[]
[]
[]
[]
[]
[]
[]
[]
[]
[]
[]
[]
[]
[]
[]
[]
[]
[]
[]
[]
[]
[]
[]
[]
[]
[]
[]
[]
[]
[]
[]
[]
[]
[]
[]
[]
[]
[]
[]
[]
[]
[]
[]
[]
[]
[]
[]
[]
[]
[]
[]
[]
[]
[]
[]
[]
[]
[]
[]
[]
[]
[]
[]
[]
[]
[]
[]
[]
[]
[]
[]
[]
[]
[]
[]
[]
[]
[]
[]
[]
[]
[]
[]
[]
[]
[]
[]
[]
[]
[]
[]
[]
[]
[]
[]
[]
[]
[]
[]
[]
[]
[]
[]
[]
[]
[]
[]
[]
[]
[]
[]
[]
[]
[]
[]
[]
[]
[]
[]
[]
[]
[]
[]
[]
[]
[]
[]
[]
[]
[]
[]
[]
[]
[]
[]
[]
[]
[]
[]
[]
[]
[]
[]
[]
[]
[]
[]
[]
[]
[]
[]
[]
[]
[]
[]
[]
[]
[]
[]
[]
[]
[]
[]
[]
[]
[]
[]
[]
[]
[]
[]
[]
[]
[]
[]
[]
[]
[]
[]
[]
[]
[]
[]
[]
[]
[]
[]
[]
[]
[]
[]
[]
[]
[]
[]
[]
[]
[]
[]
[]
[]
[]
[]
[]
[]
[]
[]
[]
[]
[]
[]
[]
[]
[]
[]
[]
[]
[]
[]
[]
[]
[]
[]
[]
[]
[]
[]
[]
[]
[]
[]
[]
[]
[]
[]
[]
[]
[]
[]
[]
[]
[]
[]
[]
[]
[]
[]
[]
[]
[]
[]
[]
[]
[]
[]
[]
[]
[]
[]
[]
[]
[]
[]
[]
[]
[]
[]
[]
[]
[]
[]
[]
[]
[]
[]
[]
[]
[]
[]
[]
[]
[]
[]
[]
[]
[]
[]
[]
[]
[]
[]
[]
[]
[]
[]
[]
[]
[]
[]
[]
[]
[]
[]
[]
[]
[]
[]
[]
[]
[]
[]
[]
[]
[]
[]
[]
[]
[]
[]
[]
[]
[]
[]
[]
[]
[]
[]
[]
[]
[]
[]
[]
[]
[]
[]
[]
[]
[]
[]
[]
[]
[]
[]
[]
[]
[]
[]
[]
[]
[]
[]
[]
[]
[]
[]
[]
[]
[]
[]
[]
[]
[]
[]
[]
[]
[]
[]
[]
[]
[]
[]
[]
[]
[]
[]
[]
[]
[]
[]
[]
[]
[]
[]
[]
[]
[]
[]
[]
[]
[]
[]
[]
[]
[]
[]
[]
[]
[]
[]
[]
[]
[]
[]
[]
[]
[]
[]
[]
[]
[]
[]
[]
[]
[]
[]
[]
[]
[]
[]
[]
[]
[]
[]
[]
[]
[]
[]
[]
[]
[]
[]
[]
[]
[]
[]
[]
[]
[]
[]
[]
[]
[]
[]
[]
[]
[]
[]
[]
[]
[]
[]
[]
[]
[]
[]
[]
[]
[]
[]
[]
[]
[]
[]
[]
[]
[]
[]
[]
[]
[]
[]
[]
[]
[]
[]
[]
[]
[]
[]
[]
[]
[]
[]
[]
[]
[]
[]
[]
[]
[]
[]
[]
[]
[]
[]
[]
[]
[]
[]
[]
[]
[]
[]
[]
[]
[]
[]
[]
[]
[]
[]
[]
[]
[]
[]
[]
[]
[]
[]
[]
[]
[]
[]
[]
[]
[]
[]
[]
[]
[]
[]
[]
[]
[]
[]
[]
[]
[]
[]
[]
[]
[]
[]
[]
[]
[]
[]
[]
[]
[]
[]
[]
[]
[]
[]
[]
[]
[]
[]
[]
[]
[]
[]
[]
[]
[]
[]
[]
[]
[]
[]
[]
[]
[]
[]
[]
[]
[]
[]
[]
[]
[]
[]
[]
[]
[]
[]
[]
[]
[]
[]
[]
[]
[]
[]
[]
[]
[]
[]
[]
[]
[]
[]
[]
[]
[]
[]
[]
[]
[]
[]
[]
[]
[]
[]
[]
[]
[]
[]
[]
[]
[]
[]
[]
[]
[]
[]
[]
[]
[]
[]
[]
[]
[]
[]
[]
[]
[]
[]
[]
[]
[]
[]
[]
[]
[]
[]
[]
[]
[]
[]
[]
[]
[]
[]
[]
[]
[]
[]
[]
[]
[]
[]
[]
[]
[]
[]
[]
[]
[]
[]
[]
[]
[]
[]
[]
[]
[]
[]
[]
[]
[]
[]
[]
[]
[]
[]
[]
[]
[]
[]
[]
[]
[]
[]
[]
[]
[]
[]
[]
[]
[]
[]
[]
[]
[]
[]
[]
[]
[]
[]
[]
[]
[]
[]
[]
[]
[]
[]
[]
[]
[]
[]
[]
[]
[]
[]
[]
[]
[]
[]
[]
[]
[]
[]
[]
[]
[]
[]
[]
[]
[]
[]
[]
[]
[]
[]
[]
[]
[]
[]
[]
[]
[]
[]
[]
[]
[]
[]
[]
[]
[]
[]
[]
[]
[]
[]
[]
[]
[]
[]
[]
[]
[]
[]
[]
[]
[]
[]
[]
[]
[]
[]
[]
[]
[]
[]
[]
[]
[]
[]
[]
[]
[]
[]
[]
[]
[]
[]
[]
[]
[]
[]
[]
[]
[]
[]
[]
[]
[]
[]
[]
[]
[]
[]
[]
[]
[]
[]
[]
[]
[]
[]
[]
[]
[]
[]
[]
[]
[]
[]
[]
[]
[]
[]
[]
[]
[]
[]
[]
[]
[]
[]
[]
[]
[]
[]
[]
[]
[]
[]
[]
[]
[]
[]
[]
[]
[]
[]
[]
[]
[]
[]
[]
[]
[]
[]
[]
[]
[]
[]
[]
[]
[]
[]
[]
[]
[]
[]
[]
[]
[]
[]
[]
[]
[]
[]
[]
[]
[]
[]
[]
[]
[]
[]
[]
[]
[]
[]
[]
[]
[]
[]
[]
[]
[]
[]
[]
[]
[]
[]
[]
[]
[]
[]
[]
[]
[]
[]
[]
[]
[]
[]
[]
[]
[]
[]
[]
[]
[]
[]
[]
[]
[]
[]
[]
[]
[]
[]
[]
[]
[]
[]
[]
[]
[]
[]
[]
[]
[]
[]
[]
[]
[]
[]
[]
[]
[]
[]
[]
[]
[]
[]
[]
[]
[]
[]
[]
[]
[]
[]
[]
[]
[]
[]
[]
[]
[]
[]
[]
[]
[]
[]
[]
[]
[]
[]
[]
[]
[]
[]
[]
[]
[]
[]
[]
[]
[]
[]
[]
[]
[]
[]
[]
[]
[]
[]
[]
[]
[]
[]
[]
[]
[]
[]
[]
[]
[]
[]
[]
[]
[]
[]
[]
[]
[]
[]
[]
[]
[]
[]
[]
[]
[]
[]
[]
[]
[]
[]
[]
[]
[]
[]
[]
[]
[]
[]
[]
[]
[]
[]
[]
[]
[]
[]
[]
[]
[]
[]
[]
[]
[]
[]
[]
[]
[]
[]
[]
[]
[]
[]
[]
[]
[]
[]
[]
[]
[]
[]
[]
[]
[]
[]
[]
[]
[]
[]
[]
[]
[]
[]
[]
[]
[]
[]
[]
[]
[]
[]
[]
[]
[]
[]
[]
[]
[]
[]
[]
[]
[]
[]
[]
[]
[]
[]
[]
[]
[]
[]
[]
[]
[]
[]
[]
[]
[]
[]
[]
[]
[]
[]
[]
[]
[]
[]
[]
[]
[]
[]
[]
[]
[]
[]
[]
[]
[]
[]
[]
[]
[]
[]
[]
[]
[]
[]
[]
[]
[]
[]
[]
[]
[]
[]
[]
[]
[]
[]
[]
[]
[]
[]
[]
[]
[]
[]
[]
[]
[]
[]
[]
[]
[]
[]
[]
[]
[]
[]
[]
[]
[]
[null,null,"2021-12-24"]